[Event "*** Titled Tuesday Blitz"]
[Site "Chess.com"]
[Date "2020.11.03"]
[Round "8"]
[White "Korchmar_Vasiliy"]
[Black "MPGM"]
[Result "1-0"]
[WhiteElo "2626"]
[BlackElo "2452"]
[TimeControl "180+1"]
[EndTime "11:30:51 PST"]
[Termination "Korchmar_Vasiliy won by resignation"]

1. e4 {[%clk 0:03:00.9]} 1... c6 {[%clk 0:02:59.1]} 2. Nf3 {[%clk 0:02:59.9]}
2... d5 {[%clk 0:03:00]} 3. Nc3 {[%clk 0:02:59.9]} 3... Bg4 {[%clk 0:02:59]} 4.
h3 {[%clk 0:02:58.3]} 4... Bh5 {[%clk 0:02:59.1]} 5. d4 {[%clk 0:02:39.4]} 5...
e6 {[%clk 0:02:53]} 6. exd5 {[%clk 0:02:15]} 6... cxd5 {[%clk 0:02:49.3]} 7.
Bb5+ {[%clk 0:02:11.1]} 7... Nc6 {[%clk 0:02:48.7]} 8. g4 {[%clk 0:02:11.5]}
8... Bg6 {[%clk 0:02:48.6]} 9. Ne5 {[%clk 0:02:12.1]} 9... Rc8 {[%clk
0:02:48.3]} 10. h4 {[%clk 0:02:09.3]} 10... f6 {[%clk 0:02:47.4]} 11. Nxg6
{[%clk 0:02:00.2]} 11... hxg6 {[%clk 0:02:48.3]} 12. Qd3 {[%clk 0:01:45]} 12...
Kf7 {[%clk 0:02:43]} 13. Bxc6 {[%clk 0:01:44.4]} 13... Rxc6 {[%clk 0:02:38.2]}
14. h5 {[%clk 0:01:42.3]} 14... gxh5 {[%clk 0:02:29.2]} 15. gxh5 {[%clk
0:01:43.2]} 15... Ne7 {[%clk 0:02:28.4]} 16. Bd2 {[%clk 0:01:40.6]} 16... Nf5
{[%clk 0:02:26.5]} 17. O-O-O {[%clk 0:01:40.2]} 17... Bb4 {[%clk 0:02:17.3]} 18.
Kb1 {[%clk 0:01:31.5]} 18... Rc4 {[%clk 0:02:11.3]} 19. Ne2 {[%clk 0:01:17.5]}
19... Bxd2 {[%clk 0:01:58.6]} 20. Rxd2 {[%clk 0:01:18.4]} 20... Qb6 {[%clk
0:01:49.7]} 21. c3 {[%clk 0:01:08.2]} 21... Rcc8 {[%clk 0:01:43.2]} 22. Nf4
{[%clk 0:01:07.1]} 22... Qd6 {[%clk 0:01:30]} 23. Qf3 {[%clk 0:01:05.4]} 23...
Rh6 {[%clk 0:01:18]} 24. Re1 {[%clk 0:01:05.2]} 24... Re8 {[%clk 0:01:14.2]} 25.
Rde2 {[%clk 0:01:03.2]} 25... Qd7 {[%clk 0:00:30.9]} 26. Nxe6 {[%clk 0:00:56.1]}
26... Kg8 {[%clk 0:00:30]} 27. Qxf5 {[%clk 0:00:54.2]} 1-0

[Event "*** Titled Tuesday Blitz"]
[Site "Chess.com"]
[Date "2020.11.03"]
[Round "8"]
[White "DonBroca"]
[Black "UmarovSabir"]
[Result "1-0"]
[WhiteElo "2111"]
[BlackElo "2302"]
[TimeControl "180+1"]
[EndTime "11:30:57 PST"]
[Termination "DonBroca won on time"]

1. e4 {[%clk 0:03:00.9]} 1... g6 {[%clk 0:02:54.7]} 2. c4 {[%clk 0:02:59.9]}
2... Bg7 {[%clk 0:02:52.6]} 3. d4 {[%clk 0:03:00.4]} 3... c6 {[%clk 0:02:49.3]}
4. Nc3 {[%clk 0:02:59.5]} 4... d6 {[%clk 0:02:37.3]} 5. Nf3 {[%clk 0:02:59.6]}
5... Bg4 {[%clk 0:02:33.2]} 6. Be3 {[%clk 0:02:57.2]} 6... Qb6 {[%clk
0:02:30.3]} 7. Qd2 {[%clk 0:02:54.8]} 7... Bxf3 {[%clk 0:02:26.8]} 8. gxf3
{[%clk 0:02:54.5]} 8... Nd7 {[%clk 0:02:23.3]} 9. h4 {[%clk 0:02:54.6]} 9... h5
{[%clk 0:02:21.5]} 10. Bd3 {[%clk 0:02:48.7]} 10... Bxd4 {[%clk 0:02:05.1]} 11.
O-O-O {[%clk 0:02:47]} 11... Bxe3 {[%clk 0:02:01.2]} 12. fxe3 {[%clk 0:02:47]}
12... Ne5 {[%clk 0:01:36.2]} 13. f4 {[%clk 0:02:38.4]} 13... Ng4 {[%clk
0:01:33.9]} 14. Rhe1 {[%clk 0:02:27.8]} 14... N8f6 {[%clk 0:01:32.6]} 15. Kb1
{[%clk 0:02:18.9]} 15... O-O-O {[%clk 0:01:31]} 16. Rc1 {[%clk 0:02:16.8]} 16...
e5 {[%clk 0:01:29.3]} 17. f5 {[%clk 0:02:12.4]} 17... gxf5 {[%clk 0:01:24.2]}
18. exf5 {[%clk 0:02:12.4]} 18... Kb8 {[%clk 0:01:21.9]} 19. Na4 {[%clk
0:02:07.3]} 19... Qc7 {[%clk 0:01:13]} 20. c5 {[%clk 0:02:04.3]} 20... d5 {[%clk
0:01:11.7]} 21. Qb4 {[%clk 0:01:55.9]} 21... e4 {[%clk 0:01:07.7]} 22. Bf1
{[%clk 0:01:54.7]} 22... Ne5 {[%clk 0:01:03.2]} 23. Rc3 {[%clk 0:01:52.9]} 23...
Rhg8 {[%clk 0:00:53]} 24. Ra3 {[%clk 0:01:51]} 24... Rg1 {[%clk 0:00:47.7]} 25.
Nb6 {[%clk 0:01:50.3]} 25... Qe7 {[%clk 0:00:03.1]} 26. Qa5 {[%clk 0:01:36.9]}
26... a6 {[%clk 0:00:02.2]} 27. Bxa6 {[%clk 0:01:33.2]} 27... Rxe1+ {[%clk
0:00:01.4]} 28. Qxe1 {[%clk 0:01:33.4]} 28... bxa6 {[%clk 0:00:01.5]} 29. Rxa6
{[%clk 0:01:34]} 29... Qb7 {[%clk 0:00:01.6]} 30. Qa5 {[%clk 0:01:31.4]} 1-0

[Event "*** Titled Tuesday Blitz"]
[Site "Chess.com"]
[Date "2020.11.03"]
[Round "8"]
[White "Lion-Al-Messi"]
[Black "indfraeng"]
[Result "1-0"]
[WhiteElo "2560"]
[BlackElo "2362"]
[TimeControl "180+1"]
[EndTime "11:31:02 PST"]
[Termination "Lion-Al-Messi won by checkmate"]

1. e4 {[%clk 0:03:00.9]} 1... e5 {[%clk 0:02:59.5]} 2. Nf3 {[%clk 0:03:01.2]}
2... Nc6 {[%clk 0:02:59.9]} 3. Bb5 {[%clk 0:03:01.8]} 3... a6 {[%clk 0:02:59.9]}
4. Ba4 {[%clk 0:03:01.7]} 4... Nf6 {[%clk 0:03:00.4]} 5. O-O {[%clk 0:03:01.4]}
5... Be7 {[%clk 0:03:00.5]} 6. Qe2 {[%clk 0:03:01.8]} 6... b5 {[%clk 0:02:57]}
7. Bb3 {[%clk 0:03:01.8]} 7... d6 {[%clk 0:02:57.9]} 8. c3 {[%clk 0:03:01.5]}
8... O-O {[%clk 0:02:56.1]} 9. Rd1 {[%clk 0:03:00.7]} 9... Re8 {[%clk
0:02:51.6]} 10. d4 {[%clk 0:03:00.2]} 10... exd4 {[%clk 0:02:48.7]} 11. cxd4
{[%clk 0:03:01.1]} 11... Bb7 {[%clk 0:02:48.3]} 12. e5 {[%clk 0:03:01.3]} 12...
Nd7 {[%clk 0:02:37]} 13. Bf4 {[%clk 0:02:49.9]} 13... Nf8 {[%clk 0:02:35]} 14.
Nc3 {[%clk 0:02:48.5]} 14... Ng6 {[%clk 0:02:27.2]} 15. Bg3 {[%clk 0:02:44.8]}
15... h5 {[%clk 0:02:21.4]} 16. h3 {[%clk 0:02:42.8]} 16... h4 {[%clk
0:02:19.2]} 17. Bh2 {[%clk 0:02:42.5]} 17... Bg5 {[%clk 0:02:13.3]} 18. Bc2
{[%clk 0:02:37.3]} 18... dxe5 {[%clk 0:01:59]} 19. dxe5 {[%clk 0:02:36.9]} 19...
Qe7 {[%clk 0:01:55.3]} 20. Nd5 {[%clk 0:02:37.1]} 20... Qc5 {[%clk 0:01:19.9]}
21. Bxg6 {[%clk 0:02:35.8]} 21... fxg6 {[%clk 0:01:20.4]} 22. Nxc7 {[%clk
0:02:36.1]} 22... Nd4 {[%clk 0:01:10.4]} 23. Nxd4 {[%clk 0:02:34.4]} 23... Qxc7
{[%clk 0:01:10.4]} 24. Qg4 {[%clk 0:02:32.3]} 24... Qe7 {[%clk 0:01:06.4]} 25.
f4 {[%clk 0:02:28.1]} 25... Bh6 {[%clk 0:01:05.7]} 26. Nf3 {[%clk 0:02:24.2]}
26... Bxf3 {[%clk 0:00:59]} 27. Qxf3 {[%clk 0:02:25.1]} 27... Kh7 {[%clk
0:00:58]} 28. Rd6 {[%clk 0:02:24.5]} 28... Rad8 {[%clk 0:00:56.1]} 29. Rad1
{[%clk 0:02:24.1]} 29... Rxd6 {[%clk 0:00:55.5]} 30. exd6 {[%clk 0:02:25]} 30...
Qd7 {[%clk 0:00:54.7]} 31. Qg4 {[%clk 0:02:23]} 31... Re6 {[%clk 0:00:53.6]} 32.
f5 {[%clk 0:02:21.4]} 32... gxf5 {[%clk 0:00:48.5]} 33. Qxf5+ {[%clk 0:02:22.3]}
33... g6 {[%clk 0:00:48.9]} 34. Qd5 {[%clk 0:02:22.7]} 34... Qe8 {[%clk
0:00:45.4]} 35. Kh1 {[%clk 0:02:00.1]} 35... Qf7 {[%clk 0:00:15.6]} 36. Bg1
{[%clk 0:01:54.1]} 36... Qd7 {[%clk 0:00:10.3]} 37. Bc5 {[%clk 0:01:53]} 37...
Qe8 {[%clk 0:00:07.2]} 38. d7 {[%clk 0:01:51.5]} 38... Re1+ {[%clk 0:00:07]} 39.
Bg1 {[%clk 0:01:51.1]} 39... Qe2 {[%clk 0:00:05.3]} 40. Rxe1 {[%clk 0:01:48]}
40... Qxe1 {[%clk 0:00:06.2]} 41. d8=Q {[%clk 0:01:47.6]} 41... Be3 {[%clk
0:00:07]} 42. Qe7+ {[%clk 0:01:47.2]} 42... Kh6 {[%clk 0:00:07.9]} 43. Qf8+
{[%clk 0:01:43.4]} 43... Kh7 {[%clk 0:00:08.8]} 44. Qdf7# {[%clk 0:01:43.5]} 1-0

[Event "*** Titled Tuesday Blitz"]
[Site "Chess.com"]
[Date "2020.11.03"]
[Round "8"]
[White "TurboSteen"]
[Black "AndrewMcStone"]
[Result "1-0"]
[WhiteElo "2026"]
[BlackElo "2104"]
[TimeControl "180+1"]
[EndTime "11:31:02 PST"]
[Termination "TurboSteen won by resignation"]

1. e4 {[%clk 0:03:00.9]} 1... e6 {[%clk 0:02:59.8]} 2. d4 {[%clk 0:02:59.1]}
2... d5 {[%clk 0:03:00.2]} 3. Nd2 {[%clk 0:02:58.9]} 3... Nf6 {[%clk 0:02:58.6]}
4. e5 {[%clk 0:02:57.8]} 4... Nfd7 {[%clk 0:02:58.4]} 5. c3 {[%clk 0:02:58.2]}
5... c5 {[%clk 0:02:59]} 6. Bd3 {[%clk 0:02:57.8]} 6... Nc6 {[%clk 0:02:59.4]}
7. Ne2 {[%clk 0:02:57.5]} 7... cxd4 {[%clk 0:03:00]} 8. cxd4 {[%clk 0:02:50.2]}
8... f6 {[%clk 0:03:00.5]} 9. exf6 {[%clk 0:02:49.5]} 9... Nxf6 {[%clk
0:03:01.4]} 10. O-O {[%clk 0:02:48.1]} 10... Bd6 {[%clk 0:03:01.9]} 11. Nf3
{[%clk 0:02:41.6]} 11... O-O {[%clk 0:03:02.1]} 12. Bf4 {[%clk 0:02:31.8]} 12...
Ne4 {[%clk 0:02:40]} 13. Bxd6 {[%clk 0:01:56.1]} 13... Qxd6 {[%clk 0:02:28.6]}
14. Ng3 {[%clk 0:01:55]} 14... Nxg3 {[%clk 0:02:18.5]} 15. hxg3 {[%clk
0:01:53.4]} 15... Bd7 {[%clk 0:02:17]} 16. Re1 {[%clk 0:01:50.4]} 16... g6
{[%clk 0:02:08.5]} 17. Ne5 {[%clk 0:01:28.8]} 17... Nxe5 {[%clk 0:01:50.8]} 18.
Rxe5 {[%clk 0:01:25.6]} 18... Qb4 {[%clk 0:01:50.7]} 19. Qg4 {[%clk 0:01:22.6]}
19... Rf6 {[%clk 0:01:46.8]} 20. Rg5 {[%clk 0:01:02.3]} 20... Qxb2 {[%clk
0:01:31.2]} 21. Rf1 {[%clk 0:00:58.1]} 21... Kg7 {[%clk 0:01:19]} 22. Rh5 {[%clk
0:00:46.4]} 22... Raf8 {[%clk 0:00:58.8]} 23. Qg5 {[%clk 0:00:43.3]} 23... Rxf2
{[%clk 0:00:34.4]} 24. Qh6+ {[%clk 0:00:40.4]} 24... Kf7 {[%clk 0:00:29.9]} 25.
Rxf2+ {[%clk 0:00:39.9]} 1-0

[Event "*** Titled Tuesday Blitz"]
[Site "Chess.com"]
[Date "2020.11.03"]
[Round "8"]
[White "elisak43"]
[Black "MarcoRiehle"]
[Result "0-1"]
[WhiteElo "2489"]
[BlackElo "2698"]
[TimeControl "180+1"]
[EndTime "11:31:06 PST"]
[Termination "MarcoRiehle won on time"]

1. d4 {[%clk 0:01:16.3]} 1... d5 {[%clk 0:02:57.6]} 2. Nf3 {[%clk 0:01:17.2]}
2... e6 {[%clk 0:02:57.6]} 3. c4 {[%clk 0:01:16.1]} 3... Nf6 {[%clk 0:02:57]} 4.
Nc3 {[%clk 0:01:14.6]} 4... dxc4 {[%clk 0:02:49.2]} 5. Qa4+ {[%clk 0:01:13.9]}
5... Nbd7 {[%clk 0:02:46.7]} 6. Qxc4 {[%clk 0:01:13.4]} 6... a6 {[%clk
0:02:47.3]} 7. a4 {[%clk 0:01:12.6]} 7... b5 {[%clk 0:02:44.2]} 8. Qb3 {[%clk
0:00:43.9]} 8... b4 {[%clk 0:02:41.9]} 9. Nb1 {[%clk 0:00:43.7]} 9... c5 {[%clk
0:02:40.2]} 10. e3 {[%clk 0:00:37.9]} 10... Bb7 {[%clk 0:02:39.2]} 11. Be2
{[%clk 0:00:37.2]} 11... Rc8 {[%clk 0:02:38.6]} 12. O-O {[%clk 0:00:36.5]} 12...
Be7 {[%clk 0:02:38.2]} 13. Nbd2 {[%clk 0:00:34.9]} 13... O-O {[%clk 0:02:36.6]}
14. Nc4 {[%clk 0:00:32.7]} 14... cxd4 {[%clk 0:02:27.8]} 15. exd4 {[%clk
0:00:32.7]} 15... Bd5 {[%clk 0:02:21.9]} 16. Be3 {[%clk 0:00:28.9]} 16... Nb6
{[%clk 0:02:19.5]} 17. Nfd2 {[%clk 0:00:28.3]} 17... Ne4 {[%clk 0:02:15.6]} 18.
Nxe4 {[%clk 0:00:26.7]} 18... Nxc4 {[%clk 0:02:12.8]} 19. Ng3 {[%clk 0:00:17.7]}
19... Nd2 {[%clk 0:02:05.2]} 20. Qd3 {[%clk 0:00:15.2]} 20... Nxf1 {[%clk
0:02:05.2]} 21. Nxf1 {[%clk 0:00:15.8]} 21... a5 {[%clk 0:02:01.5]} 22. Nd2
{[%clk 0:00:12.8]} 22... Qd7 {[%clk 0:01:58.4]} 23. b3 {[%clk 0:00:12.9]} 23...
Rc3 {[%clk 0:01:57.3]} 24. Qb5 {[%clk 0:00:10.6]} 24... Qxb5 {[%clk 0:01:56.3]}
25. axb5 {[%clk 0:00:11.5]} 25... Bxb3 {[%clk 0:01:51.1]} 26. Rxa5 {[%clk
0:00:10.8]} 26... Bd5 {[%clk 0:01:46.3]} 27. b6 {[%clk 0:00:08.6]} 27... Rb8
{[%clk 0:01:31.3]} 28. Bf3 {[%clk 0:00:02.9]} 28... Bxf3 {[%clk 0:01:24.9]} 29.
gxf3 {[%clk 0:00:01.5]} 29... Rxb6 {[%clk 0:01:13]} 0-1

[Event "*** Titled Tuesday Blitz"]
[Site "Chess.com"]
[Date "2020.11.03"]
[Round "8"]
[White "Heineccius"]
[Black "ClydeHillKid"]
[Result "1-0"]
[WhiteElo "2530"]
[BlackElo "2353"]
[TimeControl "180+1"]
[EndTime "11:31:07 PST"]
[Termination "Heineccius won by resignation"]

1. d4 {[%clk 0:03:00.9]} 1... d5 {[%clk 0:02:59.8]} 2. c4 {[%clk 0:03:01.1]}
2... e6 {[%clk 0:02:59.7]} 3. Nc3 {[%clk 0:02:59.2]} 3... Nf6 {[%clk 0:02:58.2]}
4. cxd5 {[%clk 0:02:59.5]} 4... exd5 {[%clk 0:02:58.1]} 5. Bg5 {[%clk
0:02:59.8]} 5... c6 {[%clk 0:02:57.4]} 6. e3 {[%clk 0:02:59.8]} 6... Bd6 {[%clk
0:02:51.2]} 7. Bd3 {[%clk 0:02:57.9]} 7... O-O {[%clk 0:02:44.9]} 8. Nf3 {[%clk
0:02:57.2]} 8... Re8 {[%clk 0:02:44.3]} 9. h3 {[%clk 0:02:53.1]} 9... Nbd7
{[%clk 0:02:40]} 10. O-O {[%clk 0:02:51.6]} 10... Nf8 {[%clk 0:02:32.9]} 11. Qc2
{[%clk 0:02:44]} 11... Ng6 {[%clk 0:02:21.1]} 12. Rfe1 {[%clk 0:02:28.3]} 12...
h6 {[%clk 0:02:13.3]} 13. Bxf6 {[%clk 0:02:24.5]} 13... Qxf6 {[%clk 0:02:14.2]}
14. e4 {[%clk 0:02:21.1]} 14... dxe4 {[%clk 0:01:38.4]} 15. Nxe4 {[%clk
0:02:20.1]} 15... Qd8 {[%clk 0:01:37.2]} 16. Nxd6 {[%clk 0:01:57.8]} 16... Rxe1+
{[%clk 0:01:36.5]} 17. Rxe1 {[%clk 0:01:58.7]} 17... Qxd6 {[%clk 0:01:36.9]} 18.
Re8+ {[%clk 0:01:59]} 18... Kh7 {[%clk 0:01:26.6]} 19. Ne5 {[%clk 0:01:57.4]}
19... f5 {[%clk 0:01:16.1]} 20. Nxg6 {[%clk 0:01:35.6]} 20... Kxg6 {[%clk
0:01:04]} 21. Rxc8 {[%clk 0:01:34.4]} 21... Rxc8 {[%clk 0:01:01.3]} 22. Bxf5+
{[%clk 0:01:34]} 22... Kf7 {[%clk 0:01:00.7]} 23. Bxc8 {[%clk 0:01:34.1]} 23...
Qxd4 {[%clk 0:01:00.8]} 24. Bxb7 {[%clk 0:01:23.4]} 24... c5 {[%clk 0:00:59.7]}
25. Ba6 {[%clk 0:01:20.7]} 25... Kf6 {[%clk 0:00:58.4]} 26. Bc4 {[%clk
0:01:20.7]} 26... Ke7 {[%clk 0:00:56.5]} 27. Qe2+ {[%clk 0:01:13.3]} 27... Kd6
{[%clk 0:00:54.2]} 28. Qd3 {[%clk 0:01:11.3]} 28... Ke5 {[%clk 0:00:53.2]} 29.
Qxd4+ {[%clk 0:01:10.2]} 29... Kxd4 {[%clk 0:00:54.1]} 30. b3 {[%clk 0:01:10.4]}
30... a5 {[%clk 0:00:52]} 31. a4 {[%clk 0:01:10.8]} 31... g5 {[%clk 0:00:50.7]}
32. g3 {[%clk 0:01:10.8]} 32... Kc3 {[%clk 0:00:48.6]} 33. Kg2 {[%clk 0:01:11]}
33... Kd4 {[%clk 0:00:48.2]} 34. Kf3 {[%clk 0:01:11.9]} 34... Ke5 {[%clk
0:00:38.8]} 35. Kg4 {[%clk 0:01:12.8]} 35... Kf6 {[%clk 0:00:38]} 36. Kh5 {[%clk
0:01:13.3]} 36... Kg7 {[%clk 0:00:38.2]} 37. f4 {[%clk 0:01:13.3]} 37... gxf4
{[%clk 0:00:34.8]} 38. gxf4 {[%clk 0:01:13]} 38... Kh7 {[%clk 0:00:35.7]} 39. f5
{[%clk 0:01:09.2]} 39... Kg7 {[%clk 0:00:35.7]} 40. Kg4 {[%clk 0:01:08]} 40...
Kf6 {[%clk 0:00:35.5]} 41. Kf4 {[%clk 0:01:08.7]} 41... h5 {[%clk 0:00:34.7]}
42. h4 {[%clk 0:01:08.8]} 1-0

[Event "*** Titled Tuesday Blitz"]
[Site "Chess.com"]
[Date "2020.11.03"]
[Round "8"]
[White "Shuvalov"]
[Black "lelya96"]
[Result "1-0"]
[WhiteElo "2420"]
[BlackElo "2202"]
[TimeControl "180+1"]
[EndTime "11:31:09 PST"]
[Termination "Shuvalov won by resignation"]

1. b4 {[%clk 0:02:51.8]} 1... a5 {[%clk 0:02:56.8]} 2. b5 {[%clk 0:02:51.1]}
2... e5 {[%clk 0:02:48]} 3. Bb2 {[%clk 0:02:48.5]} 3... d6 {[%clk 0:02:47.2]} 4.
e3 {[%clk 0:02:47.4]} 4... Nf6 {[%clk 0:02:46.4]} 5. c4 {[%clk 0:02:46]} 5...
Be7 {[%clk 0:02:45.7]} 6. g3 {[%clk 0:02:45.2]} 6... O-O {[%clk 0:02:41.8]} 7.
Bg2 {[%clk 0:02:45.2]} 7... c6 {[%clk 0:02:33.5]} 8. a4 {[%clk 0:02:43.6]} 8...
Be6 {[%clk 0:02:29.9]} 9. d3 {[%clk 0:02:41.6]} 9... Qc7 {[%clk 0:02:24.6]} 10.
Nd2 {[%clk 0:02:39.8]} 10... Nbd7 {[%clk 0:02:23.7]} 11. Ne2 {[%clk 0:02:33.5]}
11... Nc5 {[%clk 0:02:12]} 12. Qc2 {[%clk 0:02:30.8]} 12... Bf5 {[%clk 0:02:04]}
13. e4 {[%clk 0:02:27.6]} 13... Be6 {[%clk 0:01:51.5]} 14. h3 {[%clk 0:02:22.2]}
14... cxb5 {[%clk 0:01:50.2]} 15. axb5 {[%clk 0:02:19.2]} 15... b6 {[%clk
0:01:48.2]} 16. f4 {[%clk 0:02:15.7]} 16... Rfc8 {[%clk 0:01:30.7]} 17. f5
{[%clk 0:02:07.3]} 17... Bd7 {[%clk 0:01:28.1]} 18. g4 {[%clk 0:02:04.8]} 18...
Ne8 {[%clk 0:01:15]} 19. h4 {[%clk 0:01:58.5]} 19... f6 {[%clk 0:01:02.7]} 20.
Nf3 {[%clk 0:01:52.2]} 20... d5 {[%clk 0:00:52.2]} 21. exd5 {[%clk 0:01:45.3]}
21... Nd6 {[%clk 0:00:52]} 22. Nd2 {[%clk 0:01:38.7]} 22... Bxf5 {[%clk
0:00:38]} 23. gxf5 {[%clk 0:01:35.7]} 23... Nxf5 {[%clk 0:00:38.9]} 24. Kf2
{[%clk 0:01:20.7]} 24... Bd6 {[%clk 0:00:33.2]} 25. Bh3 {[%clk 0:01:08.9]} 25...
g6 {[%clk 0:00:17.1]} 26. h5 {[%clk 0:01:05.9]} 26... Re8 {[%clk 0:00:15.8]} 27.
hxg6 {[%clk 0:01:05.8]} 27... hxg6 {[%clk 0:00:15.9]} 28. Bxf5 {[%clk 0:01:06]}
28... gxf5 {[%clk 0:00:16.3]} 29. Rag1+ {[%clk 0:01:06.3]} 29... Kf8 {[%clk
0:00:15.9]} 30. Rh8+ {[%clk 0:01:06.1]} 30... Ke7 {[%clk 0:00:15]} 31. Rg7+
{[%clk 0:01:01.9]} 1-0

[Event "*** Titled Tuesday Blitz"]
[Site "Chess.com"]
[Date "2020.11.03"]
[Round "8"]
[White "Onischuk_V"]
[Black "AnishOnYoutube"]
[Result "1-0"]
[WhiteElo "2875"]
[BlackElo "2968"]
[TimeControl "180+1"]
[EndTime "11:31:11 PST"]
[Termination "Onischuk_V won by resignation"]

1. e4 {[%clk 0:02:57.5]} 1... c5 {[%clk 0:02:59.9]} 2. Ne2 {[%clk 0:02:57.6]}
2... d6 {[%clk 0:02:56.8]} 3. g3 {[%clk 0:02:57.2]} 3... Nf6 {[%clk 0:02:53.2]}
4. Bg2 {[%clk 0:02:57.3]} 4... Nc6 {[%clk 0:02:51.9]} 5. O-O {[%clk 0:02:54.7]}
5... g6 {[%clk 0:02:33.4]} 6. c3 {[%clk 0:02:54.8]} 6... Bg7 {[%clk 0:02:12.7]}
7. d4 {[%clk 0:02:54.3]} 7... Bg4 {[%clk 0:02:04.1]} 8. d5 {[%clk 0:02:46.4]}
8... Ne5 {[%clk 0:01:47]} 9. f4 {[%clk 0:02:45.3]} 9... Ned7 {[%clk 0:01:45.9]}
10. h3 {[%clk 0:02:39]} 10... Bxe2 {[%clk 0:01:46.1]} 11. Qxe2 {[%clk
0:02:39.2]} 11... O-O {[%clk 0:01:46.9]} 12. a4 {[%clk 0:02:35.4]} 12... Ne8
{[%clk 0:01:46.5]} 13. Na3 {[%clk 0:02:34.5]} 13... Nc7 {[%clk 0:01:46.3]} 14.
Nc4 {[%clk 0:02:33.2]} 14... b6 {[%clk 0:01:36.5]} 15. e5 {[%clk 0:02:32.1]}
15... Ne8 {[%clk 0:01:30.9]} 16. e6 {[%clk 0:02:21.5]} 16... Ndf6 {[%clk
0:01:29.3]} 17. exf7+ {[%clk 0:02:20.3]} 17... Rxf7 {[%clk 0:01:30.2]} 18. f5
{[%clk 0:02:15.1]} 18... gxf5 {[%clk 0:01:11.3]} 19. Rxf5 {[%clk 0:02:08.9]}
19... Qd7 {[%clk 0:01:10.9]} 20. g4 {[%clk 0:02:07.7]} 20... Nc7 {[%clk
0:01:10.8]} 21. a5 {[%clk 0:01:52.6]} 21... b5 {[%clk 0:01:09]} 22. Ne3 {[%clk
0:01:52.7]} 22... Re8 {[%clk 0:01:04.8]} 23. g5 {[%clk 0:01:51.1]} 23... Nfxd5
{[%clk 0:00:52]} 24. Rxf7 {[%clk 0:01:49.3]} 24... Kxf7 {[%clk 0:00:46.9]} 25.
Nxd5 {[%clk 0:01:49.1]} 25... Nxd5 {[%clk 0:00:45.4]} 26. Bxd5+ {[%clk
0:01:47.9]} 26... e6 {[%clk 0:00:46]} 27. Qh5+ {[%clk 0:01:43.7]} 27... Kg8
{[%clk 0:00:46]} 28. Be4 {[%clk 0:01:43.6]} 28... Be5 {[%clk 0:00:46.3]} 29. Be3
{[%clk 0:01:40.3]} 29... Rf8 {[%clk 0:00:44.2]} 30. Rf1 {[%clk 0:01:20.9]} 30...
Rxf1+ {[%clk 0:00:41.7]} 31. Kxf1 {[%clk 0:01:21]} 31... b4 {[%clk 0:00:32.2]}
32. g6 {[%clk 0:01:07.9]} 32... hxg6 {[%clk 0:00:29]} 33. Qxg6+ {[%clk
0:01:07.4]} 33... Bg7 {[%clk 0:00:20.3]} 34. Bh6 {[%clk 0:00:59.5]} 1-0

[Event "*** Titled Tuesday Blitz"]
[Site "Chess.com"]
[Date "2020.11.03"]
[Round "8"]
[White "Pertinhez76"]
[Black "Evachess2006"]
[Result "1-0"]
[WhiteElo "2138"]
[BlackElo "1636"]
[TimeControl "180+1"]
[EndTime "11:31:13 PST"]
[Termination "Pertinhez76 won by resignation"]

1. d4 {[%clk 0:03:00.3]} 1... d5 {[%clk 0:02:47.3]} 2. Nf3 {[%clk 0:02:59.1]}
2... Bf5 {[%clk 0:02:26.6]} 3. Bf4 {[%clk 0:02:55.3]} 3... Nf6 {[%clk
0:02:24.5]} 4. e3 {[%clk 0:02:55.2]} 4... e6 {[%clk 0:02:21.6]} 5. c4 {[%clk
0:02:55.2]} 5... Bb4+ {[%clk 0:02:19.9]} 6. Nc3 {[%clk 0:02:52.7]} 6... O-O
{[%clk 0:02:01.1]} 7. Qb3 {[%clk 0:02:48.9]} 7... Nc6 {[%clk 0:01:55.5]} 8. h3
{[%clk 0:02:38.4]} 8... Ne4 {[%clk 0:01:53.4]} 9. Rc1 {[%clk 0:02:32.6]} 9...
Bxc3+ {[%clk 0:01:52.1]} 10. bxc3 {[%clk 0:02:32.1]} 10... Na5 {[%clk
0:01:49.7]} 11. Qa4 {[%clk 0:02:31.4]} 11... Nxc4 {[%clk 0:01:46.8]} 12. Bxc4
{[%clk 0:02:31.4]} 12... dxc4 {[%clk 0:01:47.7]} 13. Qxc4 {[%clk 0:02:31.4]}
13... c6 {[%clk 0:01:45.8]} 14. Ne5 {[%clk 0:02:27.8]} 14... Qd5 {[%clk
0:01:38.4]} 15. Qe2 {[%clk 0:02:27.3]} 15... f6 {[%clk 0:01:32.6]} 16. Nf3
{[%clk 0:02:18.9]} 16... Ng5 {[%clk 0:01:24.6]} 17. c4 {[%clk 0:02:07.2]} 17...
Qa5+ {[%clk 0:00:59.8]} 18. Qd2 {[%clk 0:02:03.3]} 18... Nxf3+ {[%clk
0:00:51.9]} 19. gxf3 {[%clk 0:02:04.2]} 19... Qxd2+ {[%clk 0:00:51]} 20. Kxd2
{[%clk 0:02:05.1]} 20... Rad8 {[%clk 0:00:49.1]} 21. Kc3 {[%clk 0:02:04.5]}
21... Rfe8 {[%clk 0:00:45]} 22. e4 {[%clk 0:02:04.5]} 22... Bg6 {[%clk
0:00:43.7]} 23. Rb1 {[%clk 0:02:03.9]} 23... b6 {[%clk 0:00:38.1]} 24. a4 {[%clk
0:02:04.2]} 24... e5 {[%clk 0:00:33.1]} 25. Be3 {[%clk 0:02:03.1]} 25... exd4+
{[%clk 0:00:30.5]} 26. Bxd4 {[%clk 0:02:03.3]} 26... c5 {[%clk 0:00:30.9]} 27.
Be3 {[%clk 0:02:02.1]} 27... Bf7 {[%clk 0:00:30.2]} 28. a5 {[%clk 0:02:01.2]}
28... bxa5 {[%clk 0:00:28.3]} 29. Rb7 {[%clk 0:01:59.8]} 29... a4 {[%clk
0:00:21.6]} 30. Ra1 {[%clk 0:01:55.4]} 30... Rb8 {[%clk 0:00:20.2]} 31. Rxb8
{[%clk 0:01:47.2]} 31... Rxb8 {[%clk 0:00:18.9]} 32. Rxa4 {[%clk 0:01:47.5]}
32... Rb7 {[%clk 0:00:08]} 33. Bxc5 {[%clk 0:01:45.9]} 33... Rc7 {[%clk
0:00:01.8]} 34. Kb4 {[%clk 0:01:36.3]} 34... Bxc4 {[%clk 0:00:02.7]} 35. Kxc4
{[%clk 0:01:35.7]} 35... a5 {[%clk 0:00:02.6]} 36. Rxa5 {[%clk 0:01:35]} 36...
f5 {[%clk 0:00:03.5]} 37. Ra8+ {[%clk 0:01:32.4]} 37... Kf7 {[%clk 0:00:04.4]}
38. Rf8+ {[%clk 0:01:32.9]} 1-0